fUST/lending_fUST_20260117
["ID","MTS","AMOUNT","RATE_DAILY","PERIOD"]
[402212635,1768606249612,-500.0,0.00021917,3]
[402212636,1768606249621,-555.87,0.00021917,3]
[402212637,1768606249632,-500.0,0.00021917,3]
[402212638,1768606249641,-554.34,0.00021917,3]
[402212639,1768606249651,-323.34133083,0.00021917,3]
[402212640,1768606249660,-500.0,0.00021917,3]
[402212641,1768606249669,-500.0,0.00021917,3]
[402212642,1768606249679,-500.0,0.00021917,3]
[402212643,1768606249688,-500.0,0.00021917,3]
[402212644,1768606249697,-515.07600154,0.00021917,3]
[402212646,1768606249707,-500.0,0.00021917,3]
[402212647,1768606249716,-500.0,0.00021917,3]
[402212648,1768606249725,-500.0,0.00021917,3]
[402212649,1768606249734,-500.0,0.00021917,3]
[402212650,1768606249744,-1345.73,0.00021917,3]
[402212651,1768606249754,-779.61,0.00021917,3]
[402212652,1768606249763,-500.0,0.00021917,3]
[402212653,1768606249773,-500.0,0.00021917,3]
[402212654,1768606249785,-534.21989178,0.00021917,3]
[402212655,1768606249795,-500.0,0.00021917,3]
[402212656,1768606249804,-500.0,0.00021917,3]
[402212657,1768606249813,-500.0,0.00021917,3]
[402212658,1768606249823,-500.0,0.00021917,3]
[402212659,1768606249833,-546.31989146,0.00021917,3]
[402212660,1768606249842,-500.0,0.00021917,3]
[402212661,1768606249851,-500.0,0.00021917,3]
[402212662,1768606249860,-887.1,0.00021917,3]
[402212663,1768606249868,-500.0,0.00021917,3]
[402212665,1768606250049,-500.0,0.00021917,3]
[402212666,1768606250059,-518.09283198,0.00021917,3]
[402212667,1768606250068,-512.17996822,0.00021917,3]
[402212668,1768606250080,-500.0,0.00021917,3]
[402212669,1768606250091,-500.0,0.00021917,3]
[402212670,1768606250101,-500.0,0.00021917,3]
[402212671,1768606250110,-500.0,0.00021917,3]
[402212672,1768606250120,-500.0,0.00021917,3]
[402212673,1768606250131,-500.0,0.00021917,3]
[402212674,1768606250142,-500.0,0.00021917,3]
[402212675,1768606250151,-500.0,0.00021917,3]
[402212676,1768606250160,-500.0,0.00021917,3]
[402212677,1768606250170,-500.0,0.00021917,3]
[402212678,1768606250179,-1640.86,0.00021917,3]
[402212679,1768606250188,-557.74289917,0.00021917,3]
[402212680,1768606250199,-861.54,0.00021917,3]
[402212681,1768606250208,-276.44321618,0.00021917,3]
[402212682,1768606250217,-791.65,0.00021917,3]
[402212683,1768606250227,-500.0,0.00021917,3]
[402212684,1768606250236,-500.0,0.00021917,3]
[402212685,1768606250246,-500.0,0.00021917,3]
[402212686,1768606250255,-500.0,0.00021917,3]
[402212687,1768606250264,-500.0,0.00021917,3]
[402212688,1768606250273,-500.0,0.00021917,3]
[402212689,1768606250282,-742.29,0.00021917,3]
[402212690,1768606250292,-1663.66,0.00021917,3]
[402212691,1768606250301,-500.0,0.00021917,3]
[402212692,1768606250311,-607.94,0.00021917,3]
[402212693,1768606250321,-500.0,0.00021917,3]
[402212694,1768606250331,-500.0,0.00021917,3]
[402212695,1768606250340,-819.63,0.00021917,3]
[402212696,1768606250349,-500.0,0.00021917,3]
[402212697,1768606250359,-578.33327082,0.00021917,3]
[402212698,1768606250368,-994.98,0.00021917,3]
[402212699,1768606250378,-2128.03,0.00021917,3]
[402212700,1768606250388,-500.0,0.00021917,3]
[402212701,1768606250398,-556.64,0.00021917,3]
[402212702,1768606250407,-500.0,0.00021917,3]
[402212703,1768606250417,-564.3,0.00021917,3]
[402212704,1768606250426,-636.06,0.00021917,3]
[402212705,1768606250436,-500.0,0.00021917,3]
[402212706,1768606250445,-500.0,0.00021917,3]
[402212707,1768606250455,-500.0,0.00021917,3]
[402212708,1768606250464,-804.01,0.00021917,3]
[402212709,1768606250473,-1029.6,0.00021917,3]
[402212710,1768606250483,-1160.25,0.00021917,3]
[402212711,1768606250493,-500.0,0.00021917,3]
[402212712,1768606250502,-500.0,0.00021917,3]
[402212713,1768606250512,-500.0,0.00021917,3]
[402212714,1768606250521,-530.21,0.00021917,3]
[402212715,1768606250531,-500.0,0.00021917,3]
[402212716,1768606250540,-500.0,0.00021917,3]
[402212717,1768606250550,-666.54,0.00021917,3]
[402212718,1768606250559,-500.0,0.00021917,3]
[402212719,1768606250568,-500.0,0.00021917,3]
[402212720,1768606250578,-500.0,0.00021917,3]
[402212721,1768606250587,-694.83,0.00021917,3]
[402212722,1768606250596,-500.0,0.00021917,3]
[402212723,1768606250605,-500.0,0.00021917,3]
[402212724,1768606250615,-500.0,0.00021917,3]
[402212725,1768606250625,-500.0,0.00021917,3]
[402212726,1768606250634,-500.0,0.00021917,3]
[402212727,1768606250643,-500.0,0.00021917,3]
[402212728,1768606250652,-500.0,0.00021917,3]
[402212729,1768606250661,-500.0,0.00021917,3]
[402212730,1768606250670,-500.0,0.00021917,3]
[402212731,1768606250679,-304.92546064,0.00021917,3]
[402212732,1768606250688,-500.0,0.00021917,3]
[402212733,1768606250697,-1023.88,0.00021917,3]
[402212734,1768606250707,-500.0,0.00021917,3]
[402212735,1768606250716,-500.0,0.00021917,3]
[402212736,1768606250725,-500.0,0.00021917,3]
[402212737,1768606250736,-1491.92,0.00021917,3]
[402212738,1768606250745,-500.0,0.00021917,3]
[402212739,1768606250755,-500.0,0.00021917,3]
[402212740,1768606250764,-500.0,0.00021917,3]
[402212741,1768606250773,-1676.49,0.00021917,3]
[402212742,1768606250783,-500.0,0.00021917,3]
[402212743,1768606250792,-188.37708584,0.00021917,3]
[402212744,1768606250802,-500.0,0.00021917,3]
[402212745,1768606250811,-2078.85,0.00021917,3]
[402212746,1768606250820,-500.0,0.00021917,3]
[402212747,1768606250829,-500.0,0.00021917,3]
[402212748,1768606250839,-500.0,0.00021917,3]
[402212749,1768606250848,-526.63,0.00021917,3]
[402212750,1768606250857,-500.0,0.00021917,3]
[402212751,1768606250866,-500.0,0.00021917,3]
[402212752,1768606250875,-616.88,0.00021917,3]
[402212753,1768606250886,-1336.63,0.00021917,3]
[402212755,1768606250900,-500.0,0.00021917,3]
[402212756,1768606250909,-503.95,0.00021917,3]
[402212757,1768606250918,-504.5350984,0.00021917,3]
[402212758,1768606250928,-508.51596931,0.00021917,3]
[402212759,1768606250938,-488.19112755,0.00021917,3]
[402212760,1768606250947,-500.0,0.00021917,3]
[402212761,1768606250957,-481.46692965,0.00021917,3]
[402212762,1768606250968,-500.0,0.00021917,3]
[402212763,1768606250977,-530.76253544,0.00021917,3]
[402212764,1768606250987,-500.0,0.00021917,3]
[402212765,1768606250997,-500.0,0.00021917,3]
[402212766,1768606251006,-500.0,0.00021917,3]
[402212767,1768606251016,-1025.72,0.00021917,3]
[402212768,1768606251026,-500.0,0.00021917,3]
[402212769,1768606251035,-500.0,0.00021917,3]
[402212770,1768606251044,-854.24,0.00021917,3]
[402212771,1768606251053,-533.29287163,0.00021917,3]
[402212772,1768606251063,-500.0,0.00021917,3]
[402212773,1768606251072,-624.94,0.00021917,3]
[402212774,1768606251081,-500.0,0.00021917,3]
[402212775,1768606251090,-500.0,0.00021917,3]
[402212776,1768606251099,-500.0,0.00021917,3]
[402212777,1768606251107,-1720.81,0.00021917,3]
[402212778,1768606251116,-1133.27,0.00021917,3]
[402212779,1768606251125,-500.0,0.00021917,3]
[402212780,1768606251134,-500.0,0.00021917,3]
[402212781,1768606251143,-500.0,0.00021917,3]
[402212782,1768606251152,-2379.42,0.00021917,3]
[402212783,1768606251161,-500.0,0.00021917,3]
[402212784,1768606251171,-500.0,0.00021917,3]
[402212785,1768606251180,-500.0,0.00021917,3]
[402212786,1768606251189,-500.0,0.00021917,3]
[402212787,1768606251198,-500.0,0.00021917,3]
[402212788,1768606251207,-2019.88,0.00021917,3]
[402212789,1768606251216,-500.0,0.00021917,3]
[402212790,1768606251225,-500.0,0.00021917,3]
[402212791,1768606251235,-631.18,0.00021917,3]
[402212792,1768606251243,-1069.82,0.00021917,3]
[402212793,1768606251252,-500.0,0.00021917,3]
[402212794,1768606251262,-500.0,0.00021917,3]
[402212795,1768606251271,-500.0,0.00021917,3]
[402212796,1768606251280,-500.0,0.00021917,3]
[402212797,1768606251289,-500.0,0.00021917,3]
[402212798,1768606251299,-736.14,0.00021917,3]
[402212799,1768606251308,-500.0,0.00021917,3]
[402212800,1768606251317,-845.07,0.00021917,3]
[402212801,1768606251326,-500.0,0.00021917,3]
[402212802,1768606251335,-500.0,0.00021917,3]
[402212803,1768606251345,-2028.81,0.00021917,3]
[402212804,1768606251354,-500.0,0.00021917,3]
[402212805,1768606251363,-923.34,0.00021917,3]
[402212806,1768606251372,-703.68,0.00021917,3]
[402212807,1768606251381,-500.0,0.00021917,3]
[402212808,1768606251390,-500.0,0.00021917,3]
[402212809,1768606251399,-500.0,0.00021917,3]
[402212810,1768606251408,-1350.15,0.00021917,3]
[402212811,1768606251417,-500.0,0.00021917,3]
[402212812,1768606251426,-595.76542343,0.00021917,3]
[402212813,1768606251435,-500.0,0.00021917,3]
[402212814,1768606251445,-505.05,0.00021917,3]
[402212815,1768606251454,-500.0,0.00021917,3]
[402212816,1768606251464,-500.0,0.00021917,3]
[402212817,1768606251473,-500.0,0.00021917,3]
[402212818,1768606251482,-607.14,0.00021917,3]
[402212819,1768606251491,-500.0,0.00021917,3]
[402212820,1768606251501,-1230.17,0.00021917,3]
[402212821,1768606251510,-500.0,0.00021917,3]
[402212822,1768606251519,-500.0,0.00021917,3]
[402212823,1768606251528,-500.0,0.00021917,3]
[402212824,1768606251537,-500.0,0.00021917,3]
[402212825,1768606251546,-500.0,0.00021917,3]
[402212826,1768606251554,-1798.83,0.00021917,3]
[402212827,1768606251563,-500.0,0.00021917,3]
[402212828,1768606251573,-1815.05,0.00021917,3]
[402212829,1768606251582,-500.0,0.00021917,3]
[402212830,1768606251591,-1108.94,0.00021917,3]
[402212831,1768606251600,-1029.96,0.00021917,3]
[402212832,1768606251609,-533.43,0.00021917,3]
[402212833,1768606251618,-500.0,0.00021917,3]
[402212834,1768606251627,-845.49,0.00021917,3]
[402212835,1768606251636,-706.88,0.00021917,3]
[402212836,1768606251647,-500.0,0.00021917,3]
[402212837,1768606251656,-500.0,0.00021917,3]
[402212838,1768606251665,-1047.78,0.00021917,3]
[402212839,1768606251674,-500.0,0.00021917,3]
[402212840,1768606251683,-525.76,0.00021917,3]
[402212841,1768606251692,-785.98,0.00021917,3]
[402212842,1768606251701,-855.99,0.00021917,3]
[402212843,1768606251710,-500.0,0.00021917,3]
[402212844,1768606251718,-500.0,0.00021917,3]
[402212845,1768606251728,-500.0,0.00021917,3]
[402212846,1768606251737,-500.0,0.00021917,3]
[402212847,1768606251746,-500.0,0.00021917,3]
[402212848,1768606251755,-500.0,0.00021917,3]
[402212849,1768606251764,-500.0,0.00021917,3]
[402212850,1768606251773,-511.59,0.00021917,3]
[402212851,1768606251782,-2325.91,0.00021917,3]
[402212852,1768606251791,-500.0,0.00021917,3]
[402212853,1768606251800,-1219.03,0.00021917,3]
[402212854,1768606251809,-630.31,0.00021917,3]
[402212855,1768606251817,-2167.4,0.00021917,3]
[402212856,1768606251826,-965.59,0.00021917,3]
[402212857,1768606251835,-500.0,0.00021917,3]
[402212858,1768606251844,-523.59,0.00021917,3]
[402212859,1768606251853,-724.03,0.00021917,3]
[402212860,1768606251862,-1854.01,0.00021917,3]
[402212861,1768606251871,-812.22,0.00021917,3]
[402212862,1768606251880,-614.82,0.00021917,3]
[402212863,1768606251891,-787.07,0.00021917,3]
[402212864,1768606251900,-500.0,0.00021917,3]
[402212865,1768606251909,-500.0,0.00021917,3]
[402212866,1768606251918,-1122.88,0.00021917,3]
[402212867,1768606251927,-500.0,0.00021917,3]
[402212868,1768606251938,-505.49,0.00021917,3]
[402212869,1768606251947,-816.59,0.00021917,2]
[402212870,1768606251957,-500.0,0.00021917,2]
[402212871,1768606251969,-500.0,0.00021917,3]
[402212872,1768606251978,-500.0,0.00021917,3]
[402212873,1768606251987,-500.0,0.00021917,3]
[402212874,1768606251996,-500.0,0.00021917,3]
[402212875,1768606252005,-500.0,0.00021917,3]
[402212876,1768606252015,-500.0,0.00021917,3]
[402212877,1768606252025,-1501.63,0.00021917,3]
[402212878,1768606252034,-500.0,0.00021917,3]
[402212879,1768606252043,-564.01,0.00021917,3]
[402212880,1768606252052,-983.25,0.00021917,3]
[402212881,1768606252061,-500.0,0.00021917,3]
[402212882,1768606252071,-281.82422947,0.00021917,3]
[402212883,1768606252080,-1925.58,0.00021917,3]
[402212884,1768606252088,-500.0,0.00021917,3]
[402212885,1768606252098,-632.02928591,0.00021917,3]
[402212886,1768606252107,-500.0,0.00021917,3]
[402212887,1768606252116,-500.0,0.00021917,3]
[402212888,1768606252125,-687.65,0.00021917,3]
[402212889,1768606252134,-1993.75,0.00021917,3]
[402212890,1768606252143,-500.0,0.00021917,3]
[402212891,1768606252152,-849.14,0.00021917,3]
[402212892,1768606252162,-1057.71,0.00021917,3]
[402212893,1768606252171,-500.0,0.00021917,3]
[402212894,1768606252180,-500.0,0.00021917,3]
[402212895,1768606252189,-565.62,0.00021917,3]
[402212896,1768606252197,-500.0,0.00021917,3]
[402212897,1768606252205,-500.0,0.00021917,3]
[402212898,1768606252212,-500.0,0.00021917,3]
[402212899,1768606252221,-500.0,0.00021917,3]
[402212900,1768606252229,-512.27,0.00021917,3]
[402212901,1768606252236,-673.96,0.00021917,3]
[402212902,1768606252245,-500.0,0.00021917,3]
[402212903,1768606252255,-500.0,0.00021917,3]
[402212904,1768606252264,-1453.5,0.00021917,3]
[402212905,1768606252273,-1572.38,0.00021917,3]
[402212906,1768606252282,-500.0,0.00021917,3]
[402212907,1768606252291,-657.4,0.00021917,3]
[402212908,1768606252300,-500.0,0.00021917,3]
[402212909,1768606252309,-500.0,0.00021917,3]
[402212910,1768606252317,-500.0,0.00021917,3]
[402212911,1768606252326,-500.0,0.00021917,3]
[402212912,1768606252336,-500.0,0.00021917,3]
[402212913,1768606252346,-500.0,0.00021917,3]
[402212914,1768606252354,-522.63653285,0.00021917,3]
[402212915,1768606252363,-602.92,0.00021917,3]
[402212916,1768606252372,-1264.0,0.00021917,3]
[402212917,1768606252382,-500.0,0.00021917,3]
[402212918,1768606252391,-1202.15,0.00021917,3]
[402212919,1768606252400,-1118.7,0.00021917,3]
[402212920,1768606252409,-500.0,0.00021917,3]
[402212921,1768606252418,-1418.91,0.00021917,3]
[402212922,1768606252427,-500.0,0.00021917,3]
[402212923,1768606252436,-500.0,0.00021917,3]
[402212924,1768606252446,-526.75866767,0.00021917,3]
[402212925,1768606252455,-500.0,0.00021917,3]
[402212926,1768606252464,-1004.8,0.00021917,3]
[402212927,1768606252473,-500.0,0.00021917,3]
[402212928,1768606252482,-1060.6,0.00021917,3]
[402212929,1768606252491,-500.0,0.00021917,3]
[402212930,1768606252500,-981.72,0.00021917,3]
[402212931,1768606252509,-500.0,0.00021917,3]
[402212932,1768606252518,-500.0,0.00021917,3]
[402212933,1768606252527,-500.0,0.00021917,3]
[402212934,1768606252536,-542.78,0.00021917,3]
[402212935,1768606252545,-500.0,0.00021917,3]
[402212936,1768606252554,-500.0,0.00021917,3]
[402212937,1768606252564,-500.0,0.00021917,3]
[402212938,1768606252574,-500.0,0.00021917,3]
[402212939,1768606252583,-500.0,0.00021917,3]
[402212940,1768606252592,-603.03,0.00021917,3]
[402212941,1768606252601,-756.59,0.00021917,3]
[402212942,1768606252610,-500.0,0.00021917,3]
[402212943,1768606252618,-655.85,0.00021917,3]
[402212944,1768606252627,-500.0,0.00021917,3]
[402212945,1768606252635,-675.18,0.00021917,3]
[402212946,1768606252643,-741.82,0.00021917,3]
[402212947,1768606252652,-500.0,0.00021917,3]
[402212948,1768606252663,-886.23,0.00021917,3]
[402212949,1768606252674,-500.0,0.00021917,3]
[402212950,1768606252685,-855.17,0.00021917,3]
[402212951,1768606252697,-500.0,0.00021917,3]
[402212952,1768606252708,-1710.56,0.00021917,3]
[402212953,1768606252720,-506.62545891,0.00021917,3]
[402212954,1768606252731,-500.0,0.00021917,3]
[402212955,1768606252909,-661.66,0.00021917,3]
[402212956,1768606252918,-500.0,0.00021917,3]
[402212957,1768606252928,-500.0,0.00021917,3]
[402212958,1768606252939,-355.71844612,0.00021917,3]
[402212959,1768606252948,-500.0,0.00021917,3]
[402212960,1768606252959,-500.0,0.00021917,2]
[402212961,1768606252968,-510.77753586,0.00021917,3]
[402212962,1768606252977,-500.0,0.00021917,3]
[402212963,1768606252987,-500.0,0.00021917,3]
[402212964,1768606252995,-500.0,0.00021917,3]
[402212965,1768606253005,-500.0,0.00021917,3]
[402212966,1768606253015,-500.0,0.00021917,3]
[402212967,1768606253024,-933.57,0.00021917,3]
[402212968,1768606253033,-500.0,0.00021917,3]
[402212969,1768606253042,-500.0,0.00021917,3]
[402212970,1768606253052,-512.9810858,0.00021917,3]
[402212971,1768606253061,-500.0,0.00021917,3]
[402212972,1768606253071,-500.0,0.00021917,3]
[402212973,1768606253080,-525.64,0.00021917,3]
[402212974,1768606253090,-500.0,0.00021917,3]
[402212975,1768606253099,-500.0,0.00021917,3]
[402212976,1768606253108,-1000.0,0.00021917,2]
[402212977,1768606253117,-500.0,0.00021917,3]
[402212978,1768606253126,-500.0,0.00021917,3]
[402212979,1768606253136,-500.0,0.00021917,3]
[402212980,1768606253145,-500.0,0.00021917,3]
[402212981,1768606253154,-1221.91,0.00021917,3]
[402212982,1768606253163,-500.0,0.00021917,3]
[402212983,1768606253172,-500.0,0.00021917,3]
[402212984,1768606253182,-500.0,0.00021917,3]
[402212985,1768606253191,-1263.43,0.00021917,3]
[402212986,1768606253200,-1622.98,0.00021917,3]
[402212987,1768606253210,-500.0,0.00021917,3]
[402212988,1768606253219,-500.0,0.00021917,3]
[402212989,1768606253228,-500.0,0.00021917,3]
[402212990,1768606253237,-500.0,0.00021917,3]
[402212991,1768606253246,-500.0,0.00021917,3]
[402212992,1768606253256,-500.0,0.00021917,3]
[402212993,1768606253266,-523.98879442,0.00021917,3]
[402212994,1768606253275,-500.0,0.00021917,3]
[402212995,1768606253285,-976.58,0.00021917,3]
[402212996,1768606253294,-1186.99,0.00021917,3]
[402212997,1768606253303,-500.0,0.00021917,3]
[402212998,1768606253313,-1159.08,0.00021917,3]
[402212999,1768606253323,-502.40885319,0.00021917,3]
[402213000,1768606253332,-500.0,0.00021917,3]
[402213001,1768606253341,-500.0,0.00021917,3]
[402213002,1768606253351,-676.08,0.00021917,3]
[402213003,1768606253360,-713.98,0.00021917,3]
[402213004,1768606253370,-525.2,0.00021917,3]
[402213005,1768606253379,-543.89,0.00021917,3]
[402213006,1768606253389,-500.0,0.00021917,3]
[402213007,1768606253398,-500.0,0.00021917,3]
[402213008,1768606253407,-500.0,0.00021917,3]
[402213009,1768606253416,-500.0,0.00021917,3]
[402213010,1768606253426,-1200.0,0.00021917,3]
[402213011,1768606253435,-500.0,0.00021917,3]
[402213012,1768606253444,-500.0,0.00021917,3]
[402213013,1768606253453,-506.4794945,0.00021917,3]
[402213014,1768606253463,-500.0,0.00021917,3]
[402213015,1768606253472,-2080.52,0.00021917,3]
[402213016,1768606253482,-546.51,0.00021917,3]
[402213017,1768606253491,-500.0,0.00021917,3]
[402213018,1768606253501,-500.0,0.00021917,3]
[402213019,1768606253511,-500.0,0.00021917,3]
[402213020,1768606253520,-500.0,0.00021917,3]
[402213021,1768606253530,-685.41,0.00021917,3]
[402213022,1768606253539,-500.0,0.00021917,3]
[402213023,1768606253548,-500.0,0.00021917,3]
[402213024,1768606253558,-513.68958116,0.00021917,3]
[402213025,1768606253567,-500.0,0.00021917,3]
[402213026,1768606253577,-500.0,0.00021917,3]
[402213027,1768606253586,-607.2,0.00021917,3]
[402213028,1768606253596,-500.0,0.00021917,3]
[402213029,1768606253605,-500.0,0.00021917,3]
[402213030,1768606253614,-504.06,0.00021917,3]
[402213031,1768606253624,-500.0,0.00021917,3]
[402213032,1768606253633,-768.23,0.00021917,3]
[402213033,1768606253643,-355.96933356,0.00021917,3]
[402213034,1768606253652,-500.0,0.00021917,3]
[402213035,1768606253661,-500.0,0.00021917,3]
[402213036,1768606253671,-500.0,0.00021917,3]
[402213037,1768606253680,-500.0,0.00021917,3]
[402213038,1768606253690,-500.0,0.00021917,3]
[402213039,1768606253699,-500.0,0.00021917,3]
[402213040,1768606253708,-500.0,0.00021917,3]
[402213041,1768606253718,-500.0,0.00021917,3]
[402213042,1768606253727,-931.4,0.00021917,3]
[402213043,1768606253737,-1364.94,0.00021917,3]
[402213044,1768606253747,-500.0,0.00021917,3]
[402213045,1768606253757,-500.0,0.00021917,3]
[402213046,1768606253767,-500.0,0.00021917,3]
[402213047,1768606253777,-500.0,0.00021917,3]
[402213048,1768606253787,-982.13,0.00021917,3]
[402213049,1768606253796,-502.37,0.00021917,3]
[402213050,1768606253805,-525.93,0.00021917,3]
[402213051,1768606253815,-500.0,0.00021917,3]
[402213052,1768606253824,-502.59840766,0.00021917,3]
[402213053,1768606253834,-500.0,0.00021917,3]
[402213054,1768606253843,-1015.39,0.00021917,3]
[402213055,1768606253852,-1469.77,0.00021917,3]
[402213056,1768606253861,-375.03188063,0.00021917,3]
[402213057,1768606253874,-1568.63,0.00021917,3]
[402213058,1768606253884,-500.0,0.00021917,3]
[402213059,1768606253898,-500.0,0.00021917,3]
[402213060,1768606253908,-500.0,0.00021917,3]
[402213061,1768606253918,-500.0,0.00021917,3]
[402213062,1768606253927,-500.0,0.00021917,3]
[402213063,1768606253939,-500.0,0.00021917,3]
[402213064,1768606253948,-2478.08,0.00021917,3]
[402213065,1768606253958,-500.0,0.00021917,3]
[402213066,1768606253969,-500.0,0.00021917,3]
[402213067,1768606253978,-500.0,0.00021917,3]
[402213068,1768606253987,-839.15,0.00021917,3]
[402213069,1768606253997,-500.0,0.00021917,3]
[402213070,1768606254007,-500.0,0.00021917,3]
[402213071,1768606254016,-500.0,0.00021917,3]
[402213072,1768606254026,-500.0,0.00021917,3]
[402213073,1768606254035,-500.0,0.00021917,3]
[402213074,1768606254045,-500.0,0.00021917,3]
[402213075,1768606254054,-500.0,0.00021917,3]
[402213076,1768606254064,-627.89,0.00021917,3]
[402213077,1768606254074,-500.0,0.00021917,3]
[402213078,1768606254082,-643.23,0.00021917,3]
[402213079,1768606254093,-500.0,0.00021917,3]
[402213080,1768606254102,-500.0,0.00021917,3]
[402213081,1768606254111,-500.0,0.00021917,3]
[402213082,1768606254120,-2041.61,0.00021917,3]
[402213083,1768606254129,-500.0,0.00021917,3]
[402213084,1768606254139,-500.0,0.00021917,3]
[402213085,1768606254149,-500.0,0.00021917,3]
[402213086,1768606254159,-500.0,0.00021917,3]
[402213087,1768606254169,-883.96,0.00021917,3]
[402213088,1768606254180,-500.0,0.00021917,3]
[402213089,1768606254190,-513.62199559,0.00021917,3]
[402213090,1768606254201,-972.04,0.00021917,3]
[402213091,1768606254212,-500.0,0.00021917,3]
[402213092,1768606254224,-500.0,0.00021917,3]
[402213093,1768606254234,-838.66,0.00021917,3]
[402213094,1768606254244,-1000.0,0.00021917,2]
[402213095,1768606254255,-500.0,0.00021917,3]
[402213096,1768606254265,-500.0,0.00021917,3]
[402213097,1768606254275,-1118.18,0.00021917,3]
[402213098,1768606254284,-500.0,0.00021917,3]
[402213099,1768606254294,-752.46,0.00021917,3]
[402213100,1768606254303,-1177.42,0.00021917,3]
[402213101,1768606254313,-500.0,0.00021917,3]
[402213102,1768606254322,-500.0,0.00021917,3]
[402213103,1768606254331,-512.69614768,0.00021917,3]
[402213104,1768606254341,-500.0,0.00021917,3]
[402213105,1768606254351,-823.41,0.00021917,3]
[402213106,1768606254360,-1019.12,0.00021917,3]
[402213107,1768606254370,-615.24384259,0.00021917,3]
[402213108,1768606254379,-760.5,0.00021917,3]
[402213109,1768606254388,-500.0,0.00021917,3]
[402213110,1768606254397,-1342.67,0.00021917,3]
[402213111,1768606254407,-500.0,0.00021917,3]
[402213112,1768606254416,-1683.6,0.00021917,3]
[402213113,1768606254425,-500.0,0.00021917,3]
[402213114,1768606254434,-863.28,0.00021917,3]
[402213115,1768606254444,-500.0,0.00021917,3]
[402213116,1768606254454,-884.65,0.00021917,3]
[402213117,1768606254464,-500.0,0.00021917,3]
[402213118,1768606254474,-1291.69,0.00021917,3]
[402213119,1768606254484,-1793.94,0.00021917,3]
[402213120,1768606254493,-500.0,0.00021917,3]
[402213121,1768606254504,-1564.17,0.00021917,3]
[402213122,1768606254513,-500.0,0.00021917,3]
[402213123,1768606254522,-675.11,0.00021917,3]
[402213124,1768606254531,-1119.18,0.00021917,3]
[402213125,1768606254541,-500.0,0.00021917,3]
[402213126,1768606254550,-500.0,0.00021917,3]
[402213127,1768606254559,-500.0,0.00021917,3]
[402213128,1768606254568,-500.0,0.00021917,3]
[402213129,1768606254578,-1730.4,0.00021917,3]
[402213130,1768606254587,-500.0,0.00021917,3]
[402213131,1768606254597,-1188.4,0.00021917,3]
[402213132,1768606254607,-500.0,0.00021917,3]
[402213133,1768606254616,-2229.1,0.00021917,3]
[402213134,1768606254625,-511.89559228,0.00021917,3]
[402213135,1768606254635,-619.66,0.00021917,3]
[402213136,1768606254643,-500.0,0.00021917,3]
[402213137,1768606254652,-1783.86,0.00021917,3]